bitfinex/quotes_BTCUSD_20220212
["timestamp","ask_amount","ask_price","bid_price","bid_amount"]
[1644689571564,0.0001894,42949.0,42945.0,0.0466]
[1644689571964,0.0001894,42949.0,42946.0,0.116412]
[1644689572422,0.001,42953.0,42947.0,0.33028999]
[1644689572719,0.0005746,42950.0,42947.0,0.33028999]
[1644689572921,0.0005746,42950.0,42947.0,0.43028999]
[1644689573719,0.001,42953.0,42947.0,0.43028999]
[1644689573923,0.0005746,42951.0,42947.0,0.1466]
[1644689574321,0.0005746,42951.0,42948.0,0.116411]
[1644689574524,0.0005746,42951.0,42949.0,0.0466]
[1644689574925,0.001,42953.0,42949.0,0.0466]
[1644689575126,0.32741259,42952.0,42949.0,0.0466]
[1644689575423,0.00057459,42952.0,42949.0,0.0466]
[1644689576065,0.001,42953.0,42950.0,0.058207]
[1644689576267,0.00157458,42953.0,42951.0,0.0466]
[1644689577066,0.00157458,42953.0,42951.0,0.29288061]
[1644689577267,0.00157458,42953.0,42952.0,0.116398]
[1644689577268,0.001,42953.0,42952.0,0.116398]
[1644689577471,0.001,42953.0,42952.0,0.162998]
[1644689578670,0.001,42953.0,42952.0,0.44537813]
[1644689578970,0.001,42953.0,42952.0,0.54537813]
[1644689579272,0.001,42953.0,42952.0,0.162998]
[1644689579470,0.001,42953.0,42952.0,0.262998]
[1644689579671,0.001,42953.0,42952.0,0.742998]
[1644689580415,0.001,42953.0,42952.0,0.642998]
[1644689580615,0.001,42953.0,42952.0,0.742998]
[1644689581016,0.327838,42953.0,42952.0,0.71151842]
[1644689581218,0.001,42953.0,42952.0,0.5266]
[1644689582415,0.001,42953.0,42952.0,0.81151847]
[1644689582615,0.001,42953.0,42952.0,0.90251847]
[1644689583015,0.001,42953.0,42952.0,0.85591847]
[1644689583217,0.001,42953.0,42952.0,0.97231547]
[1644689583771,0.001,42953.0,42952.0,0.787397]
[1644689583972,0.001,42953.0,42952.0,0.88131547]
[1644689584172,0.001,42953.0,42952.0,0.696397]
[1644689584574,0.001,42953.0,42952.0,0.742997]
[1644689585479,0.002,42955.0,42953.0,0.5]
[1644689585480,0.001,42955.0,42953.0,0.5]
[1644689585674,0.001,42955.0,42954.0,0.0466]
[1644689585875,0.003,42956.0,42954.0,0.0466]
[1644689585876,0.003,42956.0,42954.0,0.3490754]
[1644689586077,0.003,42956.0,42955.0,0.05]
[1644689586275,0.003,42956.0,42955.0,0.0966]
[1644689586477,0.003,42956.0,42955.0,0.0466]
[1644689586677,0.012,42959.0,42956.0,0.55]
[1644689586877,0.004,42964.0,42958.0,0.058181]
[1644689587083,0.002,42964.0,42959.0,0.3490754]
[1644689587338,0.002287,42968.0,42963.0,0.05]
[1644689587528,0.011,42969.0,42966.0,0.130456]
[1644689587727,0.002,42975.0,42967.0,0.33262688]
[1644689587927,0.002,42975.0,42967.0,0.64086788]
[1644689588130,0.002,42975.0,42967.0,0.33804801]
[1644689588328,0.00057482,42970.0,42967.0,0.21178]
[1644689588530,0.00057482,42970.0,42967.0,0.11178]
[1644689589130,0.00057482,42970.0,42967.0,0.0466]
[1644689589329,0.002,42975.0,42968.0,0.13919821]
[1644689589529,0.00057481,42971.0,42969.0,0.0466]
[1644689589729,0.00157481,42975.0,42969.0,0.0466]
[1644689590733,0.95157481,42975.0,42968.0,0.04599821]
[1644689590930,0.95157481,42975.0,42969.0,0.12087052]
[1644689590931,0.00157481,42975.0,42969.0,0.12087052]
[1644689592166,0.00157481,42975.0,42970.0,0.27969891]
[1644689592367,0.00157481,42975.0,42971.0,0.0466]
[1644689592566,0.00057481,42976.0,42971.0,0.0466]
[1644689592966,0.002,42977.0,42972.0,0.115933]
[1644689593166,0.00057517,42975.0,42972.0,0.115933]
[1644689593667,0.326838,42974.0,42971.0,0.0466]
[1644689593865,0.00057517,42975.0,42971.0,0.0466]
[1644689594065,0.21912829,42977.0,42971.0,0.0466]
[1644689594266,0.00057516,42976.0,42971.0,0.0466]
[1644689595217,0.326838,42975.0,42965.0,0.11636]
[1644689595519,0.326838,42975.0,42963.0,0.0307]
[1644689595520,0.05,42975.0,42963.0,0.0307]
[1644689595718,0.54906624,42977.0,42963.0,0.0307]
[1644689595918,0.44906624,42977.0,42963.0,0.0307]
[1644689597016,0.37010371,42976.0,42963.0,0.0307]
[1644689597219,0.326838,42973.0,42963.0,0.0307]
[1644689597416,0.34080526,42972.0,42963.0,0.0307]
[1644689597619,1.617838,42971.0,42963.0,0.0307]
[1644689598017,0.326838,42964.0,42963.0,0.2707]
[1644689598218,0.326838,42970.0,42963.0,0.2707]
[1644689598417,0.326838,42968.0,42963.0,0.2707]
[1644689598676,0.00057557,42973.0,42963.0,0.2707]
[1644689598874,0.326838,42975.0,42963.0,0.2707]
[1644689599075,0.25050268,42973.0,42963.0,0.2707]
[1644689599375,0.326838,42972.0,42963.0,0.2707]
[1644689600275,0.50371104,42973.0,42963.0,0.2707]
[1644689600276,0.50428661,42973.0,42963.0,0.2707]
[1644689600676,0.326838,42972.0,42963.0,0.3707]
[1644689601078,0.50428661,42973.0,42963.0,0.3707]
[1644689601280,0.50371104,42973.0,42963.0,0.3707]
[1644689601476,0.50428661,42973.0,42963.0,0.3707]
[1644689601677,0.00057557,42973.0,42963.0,0.3707]
[1644689601878,0.00057557,42973.0,42963.0,0.4707]
[1644689602323,0.00057557,42973.0,42965.0,0.058186]
[1644689602518,0.1437,42976.0,42965.0,0.058186]
[1644689602717,0.001,42978.0,42965.0,0.058186]
[1644689602718,0.00057557,42973.0,42966.0,0.0466]
[1644689602918,0.00057557,42973.0,42967.0,0.29491468]
[1644689603519,0.00057557,42973.0,42971.0,0.07520785]
[1644689603718,0.001,42978.0,42972.0,0.058177]
[1644689603921,0.00057558,42973.0,42972.0,0.058177]
[1644689604817,0.001,42978.0,42972.0,0.058177]
[1644689605222,0.00057557,42975.0,42973.0,0.0466]
[1644689605419,0.00057557,42975.0,42974.0,0.30273686]
[1644689605619,0.00057557,42975.0,42974.0,0.34933686]
[1644689605821,0.00057557,42975.0,42974.0,0.2466]
[1644689606077,0.001,42978.0,42974.0,0.47014693]
[1644689606375,0.001,42978.0,42975.0,0.30273686]
[1644689606577,0.001,42978.0,42976.0,0.0966]
[1644689606777,0.001,42978.0,42977.0,0.058155]
[1644689606976,0.02328913,42994.0,42977.0,0.104755]
[1644689607177,0.02328913,42994.0,42980.0,0.06421535]
[1644689607178,0.00058224,42993.0,42980.0,0.06421535]
[1644689607377,0.00058224,42993.0,42981.0,0.55611481]
[1644689607575,0.00058224,42993.0,42982.0,0.0466]
[1644689607776,0.00058224,42993.0,42983.0,0.0466]
[1644689607975,0.00058224,42993.0,42984.0,0.0466]
[1644689608176,0.326838,42992.0,42984.0,0.104759]
[1644689608377,0.00116448,42993.0,42984.0,0.104759]
[1644689608577,0.326838,42992.0,42984.0,0.104759]
[1644689608777,0.326838,42991.0,42984.0,0.104759]
[1644689609082,0.326838,42992.0,42984.0,0.0466]
[1644689609279,0.3260277,42992.0,42984.0,0.0466]
[1644689609680,0.21260454,42990.0,42984.0,0.2866]
[1644689609920,0.326838,42989.0,42984.0,0.2866]
[1644689610121,0.56684773,42989.0,42984.0,0.2866]
[1644689610621,0.63854008,42989.0,42984.0,0.2866]
[1644689610824,0.63854008,42989.0,42984.0,0.24]
[1644689611025,0.63854008,42989.0,42984.0,0.34]
[1644689611232,0.68912406,42989.0,42984.0,0.1003]
[1644689611427,0.326825,42982.0,42974.0,0.116337]
[1644689611823,0.326825,42979.0,42974.0,0.116337]
[1644689612024,0.22984724,42981.0,42974.0,0.116337]
[1644689612426,0.00058362,42980.0,42974.0,0.116337]
[1644689612622,0.326829,42979.0,42974.0,0.116337]
[1644689613123,0.22079648,42979.0,42972.0,0.3]
[1644689613325,0.326829,42978.0,42972.0,0.3]
[1644689613572,0.22079648,42979.0,42972.0,0.3]
[1644689613573,0.326829,42977.0,42972.0,0.3]
[1644689613971,0.64182,42970.0,42969.0,0.100789]
[1644689614175,0.64182,42970.0,42968.0,0.18491847]
[1644689614373,0.64182,42970.0,42969.0,0.100796]
[1644689614573,0.64182,42970.0,42969.0,0.33124378]
[1644689614774,0.64182,42970.0,42969.0,0.77784378]
[1644689614973,0.292852,42970.0,42969.0,0.47784378]
[1644689616474,0.292852,42970.0,42969.0,0.405576]
[1644689618322,0.292852,42970.0,42969.0,0.395576]
[1644689618723,0.292852,42970.0,42969.0,0.295576]
[1644689619125,0.292852,42970.0,42969.0,0.395576]
[1644689619324,0.29054921,42970.0,42969.0,0.495576]
[1644689619526,0.29054921,42970.0,42969.0,0.595576]
[1644689619923,0.29054921,42970.0,42969.0,0.78049447]
[1644689620123,0.29054921,42970.0,42969.0,0.595576]
[1644689620324,0.29054921,42970.0,42969.0,0.78049447]
[1644689620523,0.29054921,42970.0,42969.0,0.405576]
[1644689620724,0.24054921,42970.0,42969.0,0.59049447]
[1644689621072,0.24054921,42970.0,42969.0,0.405576]
[1644689621274,0.24054921,42970.0,42969.0,0.615576]
[1644689621871,0.24054921,42970.0,42969.0,0.765576]
[1644689622075,0.24054921,42970.0,42969.0,0.815576]
[1644689622670,0.24054921,42970.0,42969.0,1.00049447]
[1644689622971,0.24054921,42970.0,42969.0,0.79969847]
[1644689623173,0.24054921,42970.0,42969.0,0.56818]
[1644689623373,0.24054921,42970.0,42969.0,0.715575]
[1644689624373,0.24054921,42970.0,42969.0,0.815575]
[1644689625324,0.24054921,42970.0,42969.0,1.11214505]
[1644689625723,0.24054921,42970.0,42969.0,1.29706352]
[1644689626124,0.00058885,42973.0,42970.0,0.95]
[1644689626329,0.00058885,42973.0,42972.0,0.150784]
[1644689626526,0.31986584,42983.0,42972.0,0.147384]
[1644689626725,0.31986584,42983.0,42976.0,0.058159]
[1644689626926,0.00883147,42980.0,42977.0,0.147363]
[1644689627327,0.00883147,42980.0,42977.0,0.1466]
[1644689627525,0.00883147,42980.0,42978.0,0.100761]
[1644689627725,0.31986584,42983.0,42979.0,0.147358]
[1644689627926,0.31986584,42983.0,42977.0,0.1]
[1644689627927,0.31986584,42983.0,42981.0,0.058158]
[1644689628225,0.31986584,42983.0,42982.0,0.197346]
[1644689628669,0.31986584,42983.0,42982.0,0.247346]
[1644689629470,0.31986584,42983.0,42982.0,0.147346]
[1644689631876,0.31986584,42983.0,42982.0,0.547346]
[1644689632075,0.00058929,42985.0,42982.0,0.247346]
[1644689632323,0.00058929,42985.0,42983.0,0.100742]
[1644689632620,0.00116448,42990.0,42985.0,0.2274828]
[1644689632818,0.00116448,42990.0,42986.0,0.0466]
[1644689633017,0.00116448,42990.0,42987.0,0.217014]
[1644689633217,0.00116448,42990.0,42988.0,0.0966]
[1644689633418,0.00116448,42990.0,42989.0,0.100721]
[1644689633617,0.00116448,42990.0,42989.0,0.197321]
[1644689634218,0.00116448,42990.0,42989.0,0.255463]
[1644689637676,0.00116448,42990.0,42989.0,0.53636]
[1644689637879,0.00116448,42990.0,42989.0,0.63636]
[1644689638076,0.00116448,42990.0,42989.0,0.355463]
[1644689638277,0.00116448,42990.0,42989.0,0.63289336]
[1644689638476,0.00116448,42990.0,42989.0,0.355463]
[1644689638879,0.00116448,42990.0,42989.0,0.255463]
[1644689639080,0.00116448,42990.0,42989.0,0.355463]
[1644689639920,0.00116448,42990.0,42989.0,0.64212275]
[1644689640123,0.00116448,42990.0,42989.0,0.55960569]
[1644689640423,0.00116448,42990.0,42989.0,0.355463]
[1644689641323,0.00116448,42990.0,42989.0,0.104742]
[1644689641523,0.32799348,42990.0,42989.0,0.058142]
[1644689641722,0.32799348,42990.0,42987.0,0.116287]
[1644689641920,0.00116448,42990.0,42987.0,0.116287]
[1644689642121,0.326829,42989.0,42987.0,0.116287]
[1644689642522,0.2432822,42990.0,42983.0,0.23491847]
[1644689642524,0.326829,42988.0,42983.0,0.23491847]
[1644689642722,0.34886099,42985.0,42983.0,0.05]
[1644689642923,0.326829,42984.0,42983.0,0.05]
[1644689643323,0.321829,42984.0,42983.0,0.05]
[1644689643578,0.32341415,42984.0,42983.0,0.06058853]
[1644689643980,0.37341415,42984.0,42983.0,0.06058853]
[1644689644382,1.276824,42983.0,42979.0,0.18491847]
[1644689644581,0.326824,42980.0,42979.0,0.18491847]
[1644689644781,0.301824,42980.0,42979.0,0.18491847]
[1644689645180,0.301824,42980.0,42970.0,0.3]
[1644689645382,0.301824,42980.0,42966.0,0.05]
[1644689645383,0.18887778,42977.0,42967.0,0.3]
[1644689645584,0.18887778,42977.0,42966.0,0.05]
[1644689645585,0.05,42972.0,42968.0,0.058182]
[1644689645782,0.326832,42971.0,42968.0,0.058182]
[1644689646180,0.05,42976.0,42968.0,0.058182]
[1644689646382,0.326832,42975.0,42968.0,0.058182]
[1644689646681,0.326832,42970.0,42964.0,0.01]
[1644689647521,0.326832,42970.0,42963.0,0.3307]
[1644689647722,0.23852877,42971.0,42964.0,0.058188]
[1644689647923,0.23852877,42971.0,42969.0,0.195]
[1644689648224,0.22322952,42970.0,42969.0,0.195]
[1644689648621,0.55006152,42970.0,42969.0,0.195]
[1644689648821,0.22322952,42970.0,42969.0,0.195]
[1644689650022,0.23852877,42971.0,42969.0,0.195]
[1644689650223,0.326832,42970.0,42969.0,0.195]
[1644689650427,0.326832,42970.0,42963.0,0.388888]
[1644689650428,0.326832,42968.0,42963.0,0.3307]
[1644689650625,1.276832,42964.0,42951.0,0.3]
[1644689650931,1.276832,42964.0,42950.0,0.232705]
[1644689650932,0.52177643,42957.0,42950.0,0.232705]
[1644689651172,0.19494443,42957.0,42950.0,0.232705]
[1644689651370,0.38050626,42957.0,42950.0,0.232705]
[1644689651573,0.19494443,42957.0,42950.0,0.23719465]
[1644689651773,0.07177243,42957.0,42950.0,0.23719465]
[1644689652171,0.07177243,42957.0,42954.0,0.058202]
[1644689652371,0.95,42964.0,42954.0,0.058202]
[1644689652571,0.20254401,42962.0,42955.0,0.130868]
[1644689652871,0.95,42964.0,42957.0,0.130854]
[1644689653073,0.95,42964.0,42956.0,0.12087506]
[1644689653371,0.23333713,42961.0,42956.0,0.12087506]
[1644689654274,0.326832,42960.0,42956.0,0.33087506]
[1644689654674,0.00819399,42971.0,42957.0,0.130852]
[1644689654930,0.00819399,42971.0,42960.0,0.13084]
[1644689655330,0.00819399,42971.0,42961.0,0.130834]
[1644689655529,0.25269472,42970.0,42962.0,0.00448846]
[1644689655730,0.25269472,42970.0,42963.0,0.130827]
[1644689655929,0.25269472,42970.0,42963.0,0.116373]
[1644689655930,0.326832,42969.0,42963.0,0.116373]
[1644689656132,0.326832,42969.0,42962.0,0.00448846]
[1644689656529,0.25269472,42970.0,42962.0,0.00448846]
[1644689656731,0.31934708,42970.0,42962.0,0.00448846]
[1644689656932,0.19384388,42967.0,42962.0,0.00448846]
[1644689657630,0.21380755,42963.0,42962.0,0.00448846]
[1644689657832,0.326832,42962.0,42955.0,0.48032014]
[1644689658033,0.326832,42962.0,42960.0,0.116381]
[1644689658233,0.21380755,42963.0,42960.0,0.116381]
[1644689658671,0.00950326,42973.0,42960.0,0.116381]
[1644689658869,0.00950326,42973.0,42961.0,0.130839]
[1644689658870,0.22478421,42972.0,42961.0,0.130839]
[1644689659071,0.22478421,42972.0,42960.0,0.116381]
[1644689659271,0.00882056,42971.0,42960.0,0.116381]
[1644689659568,0.22876607,42967.0,42960.0,0.11932535]
[1644689659969,0.24642979,42973.0,42965.0,0.20543522]
[1644689660169,0.24584178,42973.0,42965.0,0.20837926]
[1644689660570,0.2,42969.0,42965.0,0.00294404]
[1644689660770,0.195,42969.0,42965.0,0.00294404]
[1644689661573,0.195,42969.0,42966.0,0.116361]
[1644689662424,0.19,42969.0,42967.0,0.130813]
[1644689662722,0.19,42969.0,42967.0,0.13375688]
[1644689662924,0.19,42969.0,42968.0,0.130808]
[1644689663130,0.19,42969.0,42968.0,0.130807]
[1644689663522,0.19,42969.0,42967.0,0.00294388]
[1644689663826,0.19,42969.0,42968.0,0.130808]
[1644689664822,0.19,42969.0,42967.0,0.00294388]
[1644689665124,0.19,42969.0,42968.0,0.130807]
[1644689665325,0.19,42969.0,42967.0,0.07233554]
[1644689665522,0.19,42969.0,42968.0,0.130808]
[1644689665723,0.19,42969.0,42968.0,0.130807]
[1644689666170,0.19,42969.0,42968.0,0.188986]
[1644689666372,0.19,42969.0,42968.0,0.058179]
[1644689668076,0.19,42969.0,42968.0,0.188986]
[1644689669076,0.19,42969.0,42967.0,0.00294388]
[1644689670125,0.21528134,42968.0,42967.0,0.00294388]
[1644689670726,0.16528134,42968.0,42967.0,0.00294388]
[1644689671929,0.42534896,42968.0,42967.0,0.00294388]
[1644689672128,0.42534896,42968.0,42965.0,0.00058839]
[1644689672129,0.326832,42967.0,42965.0,0.00058839]
[1644689672329,0.326832,42967.0,42959.0,0.17996979]
[1644689672527,0.326832,42967.0,42965.0,0.00058839]
[1644689672727,0.326832,42961.0,42958.0,1.32064586]
[1644689672927,0.00117678,42962.0,42958.0,1.32064586]
[1644689673133,0.00117678,42962.0,42958.0,0.130851]
[1644689673328,0.00117678,42962.0,42957.0,0.21319071]
[1644689673571,0.00117678,42962.0,42953.0,1.32070167]
[1644689673771,0.00117678,42962.0,42954.0,0.18000046]
[1644689673971,0.00117678,42962.0,42958.0,0.058195]
[1644689674773,0.326832,42961.0,42959.0,0.116392]
[1644689674975,0.00117678,42962.0,42959.0,0.116392]
[1644689675175,0.00117678,42962.0,42960.0,0.130844]
[1644689675373,0.00117678,42962.0,42959.0,0.116392]
[1644689675775,0.326832,42961.0,42959.0,0.116392]
[1644689677330,0.00117678,42962.0,42959.0,0.116392]
[1644689678223,0.00117678,42962.0,42960.0,0.130843]
[1644689678723,0.00117678,42962.0,42960.0,0.25398927]
[1644689678925,0.00117678,42962.0,42961.0,0.477439]
[1644689679126,0.19,42969.0,42961.0,0.477439]
[1644689679324,0.19,42969.0,42961.0,0.277439]
[1644689679523,0.19,42969.0,42962.0,0.05]
[1644689679722,0.19,42969.0,42963.0,0.177427]
[1644689680132,0.19,42969.0,42963.0,0.154774]
[1644689680323,0.19,42969.0,42965.0,0.116355]
[1644689680523,0.19,42969.0,42968.0,0.36192769]
[1644689680726,0.19,42969.0,42968.0,0.40852769]
[1644689680926,0.19,42969.0,42968.0,0.50852769]
[1644689681480,0.09,42969.0,42968.0,0.50852769]
[1644689682381,0.09,42969.0,42968.0,0.66670469]
[1644689683279,0.09,42969.0,42968.0,0.56670469]
[1644689683680,0.09,42969.0,42968.0,0.43589769]
[1644689683881,0.09,42969.0,42968.0,0.56670469]
[1644689684082,0.09,42969.0,42968.0,1.75647286]
[1644689684484,0.09,42969.0,42968.0,1.88727986]
[1644689684681,0.09,42969.0,42968.0,1.75647286]
[1644689685121,0.09,42969.0,42968.0,1.75347286]
[1644689685320,0.09,42969.0,42968.0,1.88427986]
[1644689686522,0.09,42969.0,42968.0,1.80347286]
[1644689686819,0.09,42969.0,42968.0,1.93292876]
[1644689687026,0.09,42969.0,42968.0,1.75347286]
[1644689687221,0.09,42969.0,42968.0,1.93294894]
[1644689687621,0.09,42969.0,42968.0,1.75347286]
[1644689688322,0.09,42969.0,42968.0,1.88427986]
[1644689688580,0.09,42969.0,42968.0,1.98427986]
[1644689688783,0.09,42969.0,42968.0,2.16373864]
[1644689689080,0.09,42969.0,42968.0,2.23769666]
[1644689689682,0.09,42969.0,42968.0,2.49744507]
[1644689690379,0.09,42969.0,42968.0,2.23769666]
[1644689690580,0.09,42969.0,42968.0,2.16373864]
[1644689691880,0.09,42969.0,42968.0,2.24079939]
[1644689692720,0.09,42969.0,42968.0,2.16373864]
[1644689693621,0.09,42969.0,42968.0,2.16705295]
[1644689693821,0.09,42969.0,42968.0,2.24593799]
[1644689695824,0.09,42969.0,42968.0,2.16705295]
[1644689696075,0.09,42969.0,42968.0,1.76152526]
[1644689696274,0.09,42969.0,42968.0,1.89233226]
[1644689696473,0.09,42969.0,42968.0,1.76152526]
[1644689696674,0.09,42969.0,42968.0,1.89233226]
[1644689701528,0.09,42969.0,42968.0,1.96795267]
[1644689702530,0.09,42969.0,42968.0,2.20795267]
[1644689703975,0.09,42969.0,42968.0,2.13233226]
[1644689708033,0.30653505,42969.0,42968.0,2.13233226]
[1644689709234,0.61556917,42969.0,42968.0,2.00152526]
[1644689709833,0.61556917,42969.0,42968.0,2.13233226]
[1644689710034,0.61556917,42969.0,42968.0,2.00152526]
[1644689710234,0.61556917,42969.0,42968.0,2.00102526]
[1644689710534,0.61556917,42969.0,42968.0,2.00177378]
[1644689710734,0.39903412,42969.0,42968.0,2.13258078]
[1644689710934,0.39903412,42969.0,42968.0,2.00177378]
[1644689711167,0.39903412,42969.0,42968.0,2.13258078]
[1644689712771,0.39903412,42969.0,42968.0,2.00177378]
[1644689712972,0.39321583,42969.0,42968.0,2.00156978]
[1644689713370,0.39321583,42969.0,42968.0,2.13237678]
[1644689714831,0.39321583,42969.0,42968.0,2.00156978]
[1644689715225,0.39321583,42969.0,42968.0,2.13237678]
[1644689715829,0.39321583,42969.0,42968.0,2.37269527]
[1644689716428,0.39321583,42969.0,42968.0,2.04816978]
[1644689716630,0.39321583,42969.0,42968.0,2.17897678]
[1644689716828,0.39321583,42969.0,42968.0,2.04816978]
[1644689717028,0.39321583,42969.0,42968.0,2.17897678]
[1644689717229,0.39321583,42969.0,42968.0,2.04816978]
[1644689717628,0.39321583,42969.0,42968.0,2.17897678]
[1644689718580,0.39321583,42969.0,42968.0,2.17847678]
[1644689719183,0.39321583,42969.0,42968.0,2.04766978]
[1644689719381,0.39321583,42969.0,42968.0,1.84887378]
[1644689719583,0.39321583,42969.0,42968.0,1.97968078]
[1644689720785,0.39321583,42969.0,42968.0,2.07968078]
[1644689721589,0.1367,42979.0,42971.0,0.116351]
[1644689721788,0.00237321,42978.0,42972.0,0.477387]
[1644689721986,0.00237321,42978.0,42974.0,0.13078]
[1644689722186,0.34886099,42985.0,42976.0,0.130768]
[1644689722433,0.34886099,42985.0,42981.0,0.21264803]
[1644689722434,0.20402741,42985.0,42981.0,0.21264803]
[1644689722636,0.18449541,42985.0,42982.0,0.177345]
[1644689722832,0.00116448,42990.0,42982.0,0.64848936]
[1644689723130,0.00116448,42990.0,42983.0,0.55231436]
[1644689723330,0.00116448,42990.0,42985.0,0.13073]
[1644689723534,0.00116448,42990.0,42987.0,0.20225958]
[1644689723730,0.00116448,42990.0,42988.0,0.177318]
[1644689723930,0.00116448,42990.0,42988.0,0.162905]
[1644689724130,0.00116448,42990.0,42989.0,0.130715]
[1644689724331,0.0017586,42990.0,42989.0,0.177315]
[1644689724531,0.09852499,42988.0,42987.0,0.1]
[1644689724931,0.09852499,42988.0,42987.0,0.15]
[1644689725229,0.09852499,42988.0,42987.0,0.108155]
[1644689725632,0.09352499,42988.0,42987.0,0.108155]
[1644689725833,0.09352499,42988.0,42987.0,0.103155]
[1644689726475,0.11678499,42988.0,42987.0,0.18335131]
[1644689728074,0.11678499,42988.0,42987.0,0.103155]
[1644689728874,0.00116448,42990.0,42987.0,0.44357189]
[1644689729078,0.00136173,42990.0,42988.0,0.07103139]
[1644689729276,0.00136173,42990.0,42989.0,0.0466]
[1644689729925,0.00116448,42990.0,42989.0,0.0466]
[1644689731927,0.00116448,42990.0,42989.0,0.2866]
[1644689732126,0.00116448,42990.0,42989.0,0.3366]
[1644689732327,0.00116448,42990.0,42989.0,0.4366]
[1644689733327,0.00091131,42994.0,42989.0,0.4366]
[1644689733771,0.00060825,42992.0,42989.0,0.4366]
[1644689734172,0.00060825,42992.0,42990.0,0.27637563]
[1644689734371,0.00060825,42992.0,42991.0,0.0466]
[1644689734772,0.00091131,42994.0,42992.0,0.058143]
[1644689734971,0.00091131,42994.0,42993.0,0.2996127]
[1644689735375,0.00091131,42994.0,42993.0,0.5740157]
[1644689735774,0.00091131,42994.0,42993.0,0.6740157]
[1644689735979,0.00091131,42994.0,42993.0,0.421003]
[1644689736175,0.00091131,42994.0,42993.0,0.60046178]
[1644689736374,0.00091131,42994.0,42993.0,0.421003]
[1644689736576,0.00091131,42994.0,42993.0,0.374403]
[1644689736774,0.00091131,42994.0,42993.0,0.274403]
[1644689736978,0.00091131,42994.0,42993.0,0.49560081]
[1644689737341,0.00091131,42994.0,42993.0,0.59560081]
[1644689737536,0.00091131,42994.0,42993.0,0.59510081]
[1644689738736,0.00091131,42994.0,42993.0,0.64170081]
[1644689740139,0.00091131,42994.0,42993.0,0.420503]
[1644689740340,0.00091131,42994.0,42993.0,0.42130526]
[1644689740538,0.00091131,42994.0,42993.0,0.32180526]
[1644689740739,0.00152734,42994.0,42993.0,0.32180526]
[1644689741379,0.00065212,42997.0,42993.0,0.32180526]
[1644689741979,0.00065212,42997.0,42993.0,0.22180526]
[1644689742179,0.00065212,42997.0,42993.0,0.42180526]
[1644689742581,0.00065212,42997.0,42993.0,0.6976555]
[1644689742781,0.00065212,42997.0,42993.0,0.42180526]
[1644689743081,0.00065212,42997.0,42993.0,0.69795921]
[1644689743281,0.00065212,42997.0,42996.0,0.25434875]
[1644689743682,0.00065212,42997.0,42996.0,0.35094875]
[1644689743880,0.003,43001.0,42996.0,0.45094875]
[1644689743881,0.00805228,43000.0,42996.0,0.45094875]
[1644689744081,0.00805228,43000.0,42997.0,0.058135]
[1644689744284,0.00805228,43000.0,42998.0,0.0466]
[1644689744481,0.00805228,43000.0,42999.0,0.11577]
[1644689744681,0.00866137,43000.0,42999.0,0.21237]
[1644689744925,0.00670001,43010.0,42999.0,0.26237]
[1644689745124,0.0366594,43011.0,43002.0,0.058134]
[1644689745331,0.00563866,43016.0,43004.0,0.2]
[1644689745526,0.00563866,43016.0,43009.0,0.5826]
[1644689745726,0.00563866,43016.0,43010.0,0.3]
[1644689745926,0.001,43020.0,43015.0,0.20001622]
[1644689746125,1.002,43022.0,43016.0,0.0466]
[1644689746126,0.99781856,43022.0,43016.0,0.0466]
[1644689746327,0.99781856,43022.0,43016.0,0.404709]
[1644689746328,0.99281856,43022.0,43016.0,0.404709]
[1644689746529,0.99181856,43022.0,43017.0,0.3]
[1644689746726,0.99181856,43022.0,43018.0,0.0466]
[1644689747626,0.97681856,43022.0,43018.0,0.0466]
[1644689749171,0.31057775,43021.0,43018.0,0.0466]
[1644689749771,0.97742797,43022.0,43018.0,0.0466]
[1644689750372,0.97681856,43022.0,43019.0,0.00086703]
[1644689750573,0.97742797,43022.0,43019.0,0.00086703]
[1644689750772,0.97242797,43022.0,43019.0,0.00086703]
[1644689750973,0.97242797,43022.0,43020.0,0.116221]
[1644689751372,0.96242797,43022.0,43020.0,0.116221]
[1644689751573,0.96181856,43022.0,43020.0,0.116221]
[1644689752426,0.96181856,43022.0,43020.0,0.216221]
[1644689752723,0.95681856,43022.0,43020.0,0.316221]
[1644689752925,0.95681856,43022.0,43020.0,0.416221]
[1644689753926,0.95181856,43022.0,43020.0,0.416221]
[1644689754527,0.95181856,43022.0,43018.0,0.2466]
[1644689754926,0.95181856,43022.0,43020.0,0.1]
[1644689755126,0.95181856,43022.0,43020.0,0.34]
[1644689755326,0.95181856,43022.0,43020.0,0.456221]
[1644689755526,0.95242797,43022.0,43020.0,0.456221]
[1644689755729,0.95242797,43022.0,43021.0,0.00086516]
[1644689756174,0.94742797,43022.0,43021.0,0.00086516]
[1644689756376,0.94681856,43022.0,43021.0,0.00086516]
[1644689756975,0.94681856,43022.0,43021.0,0.10086516]
[1644689757174,0.94681856,43022.0,43021.0,0.15897516]
[1644689757376,0.94681856,43022.0,43021.0,0.25897516]
[1644689759176,0.94681856,43022.0,43021.0,0.25847516]
[1644689760227,0.94681856,43022.0,43021.0,0.25811]
[1644689763130,0.94681856,43022.0,43021.0,0.32231]
[1644689763329,0.94681856,43022.0,43021.0,0.42231]
[1644689764377,0.94681856,43022.0,43021.0,0.50176878]
[1644689764578,0.94681856,43022.0,43021.0,0.2642]
[1644689764777,0.94681856,43022.0,43021.0,0.44365878]
[1644689764977,0.94681856,43022.0,43021.0,0.2642]
[1644689765383,1.51257681,43021.0,43019.0,0.12945878]
[1644689765580,1.51257681,43021.0,43005.0,0.05]
[1644689765581,1.35,43018.0,43005.0,0.25383618]
[1644689765779,0.05,43011.0,43005.0,0.20383618]
[1644689765979,0.3,43017.0,43004.0,0.058136]
[1644689766178,1.0,43018.0,43007.0,0.00056734]
[1644689766380,0.00056724,43015.0,43007.0,0.0878142]
[1644689766579,0.19994785,43014.0,43007.0,0.00056734]
[1644689766981,0.05,43010.0,43007.0,0.00056734]
[1644689767333,0.05,43010.0,43001.0,0.05814]
[1644689767528,0.26540989,43007.0,43001.0,0.05814]